Cogmind - Beta 17.1 @@@ ROGUE MODE // 2026.09.24 @ 20:48:31 Player: Ol Swarmie Result: Self-destructed Performance ------------- Evolutions (3) 1500 Regions Visited (7) 1400 Robots Destroyed (46) 230 Value Destroyed (1310) 1310 Prototype IDs (26) 520 Alien Tech Used (0) 0 Bonus (300) 300 TOTAL SCORE: 5260 Bonus ------- Aligned with FarCom 300 Cogmind --------- Core Integrity 442/700 Matter 285/300 Energy 23/100 System Corruption 0% Temperature Cool (0) Movement Flying (35) Location -7/Factory Parts ------- > --- POWER (2) -------- (None) > --- PROPULSION (3) --- VTOL Module > --- UTILITY (6) ------ Modified TNC Improved Targeting Computer > --- WEAPON (2) ------- (None) > --- INVENTORY (5) ---- Carbon-fiber Leg Armor Integrity Analyzer System Restoration Module Advanced Beam Rifle Gauss Rifle Peak State ------------ > --- POWER ------------ Nuclear Core > --- PROPULSION ------- Titanium Leg VSS Leg > --- UTILITY ---------- Medium Storage Unit Modified TNC Improved Targeting Computer Particle Charger Particle Charger Hacking Suite > --- WEAPON ----------- Field Laser Gauss Rifle > --- INVENTORY -------- VTOL Module VTOL Module VTOL Module Energy Filter System Shield System Restoration Module Arc Projector Precision Shock Rifle Advanced Beam Rifle [Rating: 37] Favorites ----------- Power Light Nuclear Core Engine Ion Engine Power Core Light Nuclear Core Propulsion VTOL Module Leg Titanium Leg Wheel Armored Wheel Flight Unit VTOL Module Utility Hacking Suite Device Improved Heat Sink Storage Medium Storage Unit Processor Modified TNC Hackware Hacking Suite Protection Hardened Light Armor Plating Weapon Beam Cannon Energy Gun EM Pulse Gun Energy Cannon Beam Cannon Ballistic Gun Assault Rifle Ballistic Cannon Flak Cannon Special Weapon Mining Laser Impact Weapon Heavy Hammer Build | -11 -10 -9 -9 -9 -8 -8 -7 ------- Run | Yrd Mat Mat Min Exi Min Mat Fac Slots Evolved 6 | . . 2 . . . 2 2 Power 1 | . . . . . . . 1 Propulsion 1 | . . 1 . . . . . Utility 4 | . . 1 . . . 2 1 Weapon . | . . . . . . . . Parts Attached 53 | 6 11 12 1 . 1 13 9 Power 11 | 1 1 3 . . 1 3 2 Engine 4 | 1 1 2 . . . . . Core 7 | . . 1 . . 1 3 2 Reactor . | . . . . . . . . Propulsion 17 | 2 3 5 . . . 5 2 Treads . | . . . . . . . . Leg 7 | . 2 . . . . 4 1 Wheel 7 | 2 1 3 . . . 1 . Hover . | . . . . . . . . Flight 3 | . . 2 . . . . 1 Utility 13 | 1 4 3 . . . 3 2 Device 5 | . 1 1 . . . 1 2 Storage 3 | 1 1 1 . . . . . Processor 2 | . . . . . . 2 . Hackware 1 | . . 1 . . . . . Protection 2 | . 2 . . . . . . Artifact . | . . . . . . . . Weapon 12 | 2 3 1 1 . . 2 3 Energy Gun 4 | 1 1 . . . . . 2 Energy Cannon 2 | . . 1 . . . 1 . Ballistic Gun 3 | 1 1 . . . . . 1 Ballistic Cannon 1 | . . . . . . 1 . Launcher . | . . . . . . . . Special Weapon 1 | . . . 1 . . . . Impact Weapon 1 | . 1 . . . . . . Slashing Weapon . | . . . . . . . . Piercing Weapon . | . . . . . . . . Special Melee Weapon . | . . . . . . . . Unidentified Prototypes . | . . . . . . . . Parts Lost 37 | . 7 5 . . . 11 14 Power 7 | . 1 1 . . . 2 3 Propulsion 13 | . 2 3 . . . 4 4 Utility 8 | . 2 . . . . 2 4 Weapon 9 | . 2 1 . . . 3 3 Highest Loss Streak 11 | . 3 3 . . . 7 11 To Critical Strikes 1 | . . . . . . . 1 Average Backups 8 | 4 9 8 7 8 9 8 7 Power . | . 1 . . . . . . Propulsion 1 | 3 2 . . . . 1 2 Utility 4 | . 3 5 6 6 6 3 2 Weapon 2 | . 1 1 1 2 2 3 1 Tool/Special . | . . . . . . . . Unused Backups 32 | 1 6 8 . 4 1 6 6 Power 1 | . . 1 . . . . . Propulsion 7 | . 4 1 . . . 2 . Utility 17 | 1 1 5 . 3 1 3 3 Weapon 7 | . 1 1 . 1 . 1 3 Tool/Special . | . . . . . . . . Average Slot Usage (%) 95 | . 98 93 100 100 100 96 77 Engine 6 | . 13 6 11 11 4 . . Core 3 | . . 3 . . 6 9 7 Leg 6 | . 3 6 . . . 12 13 Wheel 14 | . 24 20 11 11 11 8 . Flight 6 | . . 1 22 22 22 4 . Device 9 | . 1 13 11 11 11 8 11 Storage 10 | . 14 11 11 11 11 9 6 Processor 5 | . . . . . . 17 15 Hackware 7 | . . 7 11 11 11 9 6 Protection 2 | . 12 . . . . . . Energy Gun 6 | . 2 19 6 . 9 . 6 Energy Cannon 6 | . . 2 11 11 11 15 . Ballistic Gun 5 | . 23 . . . . . 6 Special Weapon 1 | . . . 4 11 1 . . Peak Build Rating 37 | 6 13 19 17 19 20 35 37 Average Rating 19 | 5 9 16 17 17 19 30 33 On Entrance 14 | . 6 13 17 17 18 20 23 Avg Prop Armor Cover (%) 8 | . . 9 6 6 6 10 . Naked Turns . | . . . . . . . . Heaviest Build 93 | 12 93 22 21 20 21 30 30 Greatest Support 38 | 26 32 38 12 12 12 34 29 Greatest Overweight (x) 3 | 1 3 1 1 1 1 2 2 Average Overweight (x) . | . 2 . 1 1 1 . . Largest Inventory Capacity 25 | 8 25 10 10 10 10 10 10 Average Capacity 12 | 7 22 9 10 10 10 10 9 Most Carried 13 | 8 13 10 8 10 10 10 10 Average Carried 8 | 5 9 8 7 8 9 8 7 Final Capacity 10 | 8 8 10 10 10 10 10 5 Final Carried 9 | 7 8 7 8 9 9 7 5 Class Distribution -------------------- 75% | Mutant 24% | Scavenger-Mutant Dominant Class ---------------- Mutant | -10/Materials Scavenger-Mutant | -9/Materials Mutant | -9/Mines Mutant | -9/Exiles Mutant | -8/Mines Mutant | -8/Materials Scavenger-Mutant | -7/Factory Resources | -11 -10 -9 -9 -9 -8 -8 -7 ----------- Run | Yrd Mat Mat Min Exi Min Mat Fac Matter Collected 1178 | 265 357 185 . . 62 226 83 Remotely . | . . . . . . . . Salvage Created 1518 | 86 407 543 . . 26 364 92 Parts 98 | 2 23 46 . . 4 18 5 Haulers Intercepted 4 | . 1 3 . . . . . Recyclers Shooed 1 | . . 1 . . . . . Parts Field Recycled . | . . . . . . . . Retrieved Matter . | . . . . . . . . Parts Self-Destructed . | . . . . . . . . Prevented . | . . . . . . . . Parts Restored . | . . . . . . . . Kills | -11 -10 -9 -9 -9 -8 -8 -7 ------- Run | Yrd Mat Mat Min Exi Min Mat Fac Combat Hostiles Destroyed 34 | . 11 10 . . 3 8 2 Melee 2 | . 2 . . . . . . Guns 18 | . 8 7 . . 1 . 2 Cannons 10 | . . 1 . . 2 7 . AOE 2 | . . 2 . . . . . Classes Destroyed 9 | 1 5 1 . . . 2 . Worker 2 | . 1 1 . . . . . Hauler 4 | . 1 3 . . . . . Recycler 1 | 1 . . . . . . . Watcher 5 | . 1 3 . . . 1 . Swarmer 12 | . 2 5 . . 3 2 . Grunt 15 | . 9 3 . . . 3 . Sentry 3 | . . 2 . . . 1 . Specialist 1 | . . . . . . 1 . Hunter 3 | . . . . . . 1 2 Best Kill Streak 6 | 1 3 3 . . 3 6 2 Combat Bots Only 5 | . 2 3 . . 3 5 2 Max Kills in Single Turn 2 | 1 1 2 . . 1 1 1 Gunslinging . | . . . . . . . . Exploded 2 | . . 2 . . . . . Melee 1 | . 1 . . . . . . Uniques/NPCs Destroyed . | . . . . . . . . Combat | -11 -10 -9 -9 -9 -8 -8 -7 -------- Run | Yrd Mat Mat Min Exi Min Mat Fac Hostile Shots Fired 536 | . 147 52 . . 9 195 133 Missed 180 | . 42 19 . . 2 80 37 Hits 356 | . 105 33 . . 7 115 96 Projectile 356 | . 105 33 . . 7 115 96 AOE 2 | . 1 . . . . 1 . Critical Strikes 8 | . 1 1 . . . 4 2 Damage Taken 4510 | . 1252 497 . . 51 1638 1072 Core 1045 | . 228 142 . . 9 408 258 Absorbed by Shields 240 | . . . . . . 240 . Regen/Repaired (Parts) 111 | . . . . . . 111 . Core Remaining (%) 48 | 100 8 . . . 62 25 . Volleys Fired 138 | 5 49 46 . . 3 22 13 Largest 2 | 2 2 2 . . 2 2 2 Hottest 160 | 60 85 125 . . 160 128 118 Shots Fired 263 | 10 84 92 . . 7 44 26 Gun 206 | 10 84 84 . . 2 . 26 Cannon 55 | . . 8 . . 3 44 . Launcher . | . . . . . . . . Special 2 | . . . . . 2 . . Kinetic 104 | 5 76 . . . . 11 12 Thermal 112 | . 8 53 . . 5 33 13 Explosive . | . . . . . . . . Electromagnetic 47 | 5 . 39 . . 2 . 1 Robot Hit Streak 16 | 9 16 9 . . 4 10 6 Robot Miss Streak 7 | . 7 4 . . 2 5 1 Penetration Max . | . . . . . . . . Secondary Targets 2 | . 2 . . . . . . Max Gunslinging Chain 1 | . 1 . . . . . . Shots Hit Robots 186 | 9 64 52 . . 4 37 20 Core Hits 78 | 1 23 22 . . 3 23 6 Critical Kills 1 | . . . . . . 1 . Critical Parts Destroyed 1 | . 1 . . . . . . Critical Strikes 3 | . 1 1 . . . 1 . Burn 1 | . . 1 . . . . . Meltdown 1 | . . . . . . 1 . Smash 1 | . 1 . . . . . . Melee Attacks 19 | . 19 . . . . . . Impact 19 | . 19 . . . . . . Slashing . | . . . . . . . . Piercing . | . . . . . . . . Sneak Attacks . | . . . . . . . . Combat Hostiles . | . . . . . . . . Follow-up Attacks . | . . . . . . . . Damage Inflicted 3297 | 119 1012 1040 . . 88 779 259 Guns 1875 | 119 724 762 . . 11 . 259 Cannons 861 | . . 34 . . 53 774 . Explosions 224 | . . 224 . . . . . Melee 288 | . 288 . . . . . . Ramming 25 | . . 20 . . . 5 . Kinetic 1061 | 52 625 . . . . 268 116 Thermal 1267 | . 99 450 . . 77 506 135 Explosive 224 | . . 224 . . . . . Electromagnetic 432 | 67 . 346 . . 11 . 8 Impact 288 | . 288 . . . . . . Slashing . | . . . . . . . . Piercing . | . . . . . . . . Highest Corruption 2 | . . 2 2 2 2 1 . Average Corruption 1 | . . 2 2 2 2 1 . Corruption Purged . | . . . . . . . . Corruption Blocked . | . . . . . . . . Effects 22 | . . 4 . 9 4 5 . Message Errors 4 | . . . . 3 . 1 . Matter Fused 7 | . . 1 . 3 1 2 . Heat Flow Errors 3 | . . 1 . . 1 1 . Energy Discharges 3 | . . 1 . 1 1 . . Data Loss (minor) 2 | . . . . 1 . 1 . Data Loss (major) 1 | . . 1 . . . . . Misfires 1 | . . . . . 1 . . Alerts 1 | . . . . 1 . . . Overload Shots . | . . . . . . . . Overflow Damage 211 | . 79 132 . . . . . Projectiles . | . . . . . . . . Explosions 132 | . . 132 . . . . . Melee 79 | . 79 . . . . . . Knockbacks 12 | . 2 1 . . . 9 . Impact 3 | . 2 1 . . . . . Kinetic 8 | . . . . . . 8 . Secondary 1 | . . . . . . 1 . Self-Inflicted Damage 121 | . . 121 . . . . . Shots 1 | . . 1 . . . . . Rammed 2 | . . 2 . . . . . Targets Rammed 4 | . . 2 . . . 2 . Kicked 2 | . . . . . . 2 . Crushed . | . . . . . . . . Highest Temperature 345 | . 345 69 . . 203 216 140 Average Temperature 66 | . 95 19 . . 115 49 59 Received Heat Transfer 892 | . 516 117 . . . 187 72 Effects 1 | . 1 . . . . . . Shutdowns 1 | . 1 . . . . . . Siege Activations . | . . . . . . . . Martial Activations . | . . . . . . . . Shielding Activations . | . . . . . . . . Robots Disrupted . | . . . . . . . . Combat Hostiles . | . . . . . . . . Robots Corrupted 1 | . 1 . . . . . . Combat Hostiles 1 | . 1 . . . . . . Parts Fried . | . . . . . . . . Impact Corruptions 3 | . 3 . . . . . . Robots Melted 1 | . . . . . . 1 . Combat Hostiles 1 | . . . . . . 1 . Parts Melted 4 | . 2 1 . . . 1 . Heat Transferred 2825 | . 259 1147 . . 161 962 296 Parts Sabotaged . | . . . . . . . . Parts Stolen . | . . . . . . . . Parts Stripped . | . . . . . . . . Power Chain Reactions . | . . . . . . . . Alert | -11 -10 -9 -9 -9 -8 -8 -7 ------- Run | Yrd Mat Mat Min Exi Min Mat Fac Maximum Alert Level . | . . . . . . . . Low Security (%) 100 | 100 100 100 100 . 100 100 100 Level 1 . | . . . . . . . . Level 2 . | . . . . . . . . Level 3 . | . . . . . . . . Level 4 . | . . . . . . . . Level 5 . | . . . . . . . . High Security . | . . . . . . . . Max Security . | . . . . . . . . Peak Influence 160 | 5 62 100 13 . 70 157 160 Initial 26 | . . 26 13 . . 1 15 Average 24 | . 14 34 7 . 34 27 12 Influence Increases 1347 | 5 270 441 . . 85 346 200 Destroy 0b10 Robot/C 680 | . 220 200 . . 60 160 40 Destroy 0b10 Robot/NC 65 | 5 15 35 . . . 10 . Destroy Leader 158 | . 34 62 . . 10 42 10 Successful Hack 23 | . . 10 . . . 13 . Disable Machine 75 | . . 30 . . 15 30 . Anti-Garrison Action 150 | . . . . . . . 150 Destroy Structure 31 | . 1 29 . . . 1 . Lose Combat Pursuer 165 | . . 75 . . . 90 . Influence Decreases 1317 | 5 208 469 34 . 80 317 204 Entered New Map 80 | . . 36 21 . . 4 19 Time Decay 814 | 5 138 320 13 . 80 203 55 Lost Part 360 | . 70 50 . . . 110 130 Purge Threat 63 | . . 63 . . . . . Squads Dispatched 11 | . 1 1 . . . 4 5 Investigation 5 | . . 1 . . . 2 2 Extermination . | . . . . . . . . Reinforcement 3 | . 1 . . . . 2 . Assault 2 | . . . . . . . 2 Garrison 1 | . . . . . . . 1 Intercept . | . . . . . . . . Searches Triggered . | . . . . . . . . Construction Impeded . | . . . . . . . . Haulers Reinforced . | . . . . . . . . Active Scanning Responses . | . . . . . . . . Cargo Convoy Interrupts . | . . . . . . . . Stealth | -11 -10 -9 -9 -9 -8 -8 -7 --------- Run | Yrd Mat Mat Min Exi Min Mat Fac Distress Signals 3 | . 2 . . . . 1 . Communications Jammed . | . . . . . . . . Distress Signals . | . . . . . . . . Times Spotted 67 | . 15 22 . . 2 21 7 Peak Tracking Total 9 | . 5 4 . . 2 9 6 Tactical Retreats 6 | . . 3 . . . 3 . Traps | -11 -10 -9 -9 -9 -8 -8 -7 ------- Run | Yrd Mat Mat Min Exi Min Mat Fac Traps Triggered 2 | . . 1 . . . . 1 Indirectly . | . . . . . . . . Trap Hack Attempts . | . . . . . . . . Triggered . | . . . . . . . . Disarmed . | . . . . . . . . Reprogrammed . | . . . . . . . . Reused . | . . . . . . . . Traps Extracted . | . . . . . . . . Installed . | . . . . . . . . Triggered . | . . . . . . . . Machines | -11 -10 -9 -9 -9 -8 -8 -7 ---------- Run | Yrd Mat Mat Min Exi Min Mat Fac Machines Disabled 6 | . . 2 . . 1 2 1 Max in Single Turn 1 | . . 1 . . 1 1 1 Garrison Access 1 | . . . . . . . 1 Machines Repaired . | . . . . . . . . Machines Dismantled . | . . . . . . . . Machines Sabotaged . | . . . . . . . . Overloaded Fab Kills . | . . . . . . . . Hacking | -11 -10 -9 -9 -9 -8 -8 -7 --------- Run | Yrd Mat Mat Min Exi Min Mat Fac Machines Accessed 20 | . 3 4 . 5 . 7 1 Terminals 9 | . 2 4 . . . 3 . Fabricators . | . . . . . . . . Repair Stations 1 | . . . . . . 1 . Recycling Units 3 | . 1 . . . . 2 . Scanalyzers 1 | . . . . . . 1 . Garrison Access 1 | . . . . . . . 1 Total Hacks 89 | . 7 11 . 50 . 18 3 Successful 73 | . 4 7 . 50 . 12 . Failed 16 | . 3 4 . . . 6 3 Catastrophic 1 | . . . . . . 1 . Database Lockouts . | . . . . . . . . Manual 8 | . 3 1 . 1 . 3 . Terminals 24 | . 5 11 . . . 8 . Fabricators . | . . . . . . . . Repair Stations 3 | . . . . . . 3 . Recycling Units 6 | . 2 . . . . 4 . Scanalyzers 3 | . . . . . . 3 . Garrison Access 3 | . . . . . . . 3 Terminal Hacks 63 | . 2 7 . 50 . 4 . Record 54 | . 1 . . 49 . 4 . Prototype ID Bank 1 | . . 1 . . . . . Alert Level 2 | . 1 1 . . . . . Unreport Threat 1 | . . 1 . . . . . Locate Traps 1 | . . 1 . . . . . Patrol Status 1 | . . 1 . . . . . Hauler Manifests 1 | . . 1 . . . . . Zone Layout 1 | . . 1 . . . . . Proto ID Catalog 1 | . . . . 1 . . . Fabricator Hacks . | . . . . . . . . Repair Station Hacks 3 | . . . . . . 3 . Scan Component 2 | . . . . . . 2 . Repair 1 | . . . . . . 1 . Recycling Unit Hacks 5 | . 2 . . . . 3 . Report Inventory 3 | . 1 . . . . 2 . Retrieve Matter 1 | . 1 . . . . . . Retrieve Components 1 | . . . . . . 1 . Scanalyzer 2 | . . . . . . 2 . Insert Component 1 | . . . . . . 1 . Analyze 1 | . . . . . . 1 . Garrison Access Hacks . | . . . . . . . . Unauthorized Hacks . | . . . . . . . . Terminals . | . . . . . . . . Fabricators . | . . . . . . . . Repair Stations . | . . . . . . . . Recycling Units . | . . . . . . . . Scanalyzers . | . . . . . . . . Garrison Access . | . . . . . . . . Data Cores Recovered . | . . . . . . . . Used . | . . . . . . . . Hacking Detections 12 | . 2 3 . . . 6 1 Full Trace Events 4 | . . 1 . . . 2 1 Feedback Events 1 | . . . . . . 1 . Corruption 1 | . . . . . . 1 . Feedback Blocked . | . . . . . . . . Robot Schematics Acquired . | . . . . . . . . Robots Built . | . . . . . . . . Authchips . | . . . . . . . . Time . | . . . . . . . . Total Robot Build Rating . | . . . . . . . . Part Schematics Acquired 1 | . . . . . . 1 . Parts Built . | . . . . . . . . Authchips . | . . . . . . . . Time . | . . . . . . . . Total Part Build Rating . | . . . . . . . . Part Studies Acquired . | . . . . . . . . Parts Repaired 1 | . . . . . . 1 . Time 38 | . . . . . . 38 . Parts Recycled . | . . . . . . . . Recycled Matter . | . . . . . . . . Retrieved Matter . | . . . . . . . . Retrieved Components 5 | . . . . . . 5 . Parts Scanalyzed 1 | . . . . . . 1 . Part Schematics Acquired 1 | . . . . . . 1 . Parts Damaged . | . . . . . . . . Bothacking | -11 -10 -9 -9 -9 -8 -8 -7 ------------ Run | Yrd Mat Mat Min Exi Min Mat Fac Used RIF Installer . | . . . . . . . . Robots Hacked . | . . . . . . . . Non-combat . | . . . . . . . . Combat . | . . . . . . . . Robot Hacks Applied . | . . . . . . . . Relay Couplers Released 3 | . . . . . . . 3 Machine Destruction 3 | . . . . . . . 3 Fabnet Peak Effective % . | . . . . . . . . Robots Rewired . | . . . . . . . . Allies Hacked . | . . . . . . . . Hacks Repelled . | . . . . . . . . Allies | -11 -10 -9 -9 -9 -8 -8 -7 -------- Run | Yrd Mat Mat Min Exi Min Mat Fac Total Allies 1 | . . . 1 . . . . Largest Group 1 | . . . 1 1 . . . Highest-Rated Group 31 | . . . 31 31 . . . Highest-Rated Ally 31 | . . . 31 31 . . . Total Orders . | . . . . . . . . Ally Attacks . | . . . . . . . . Total Damage . | . . . . . . . . Kills . | . . . . . . . . Allies Corrupted . | . . . . . . . . Allies Melted . | . . . . . . . . Intel | -11 -10 -9 -9 -9 -8 -8 -7 ------- Run | Yrd Mat Mat Min Exi Min Mat Fac Active Infowar (turns) 1456 | . . 248 . . . 880 328 Sensors 248 | . . 248 . . . . . T.N.C. 1208 | . . . . . . 880 328 Robot Analysis Total . | . . . . . . . . Derelict Logs Recovered 1 | . . . 1 . . . . Drone Launches . | . . . . . . . . Drone Recoveries . | . . . . . . . . Exploration | -11 -10 -9 -9 -9 -8 -8 -7 ------------- Run | Yrd Mat Mat Min Exi Min Mat Fac Turns Passed 3736 | 118 717 920 40 572 161 880 328 Spaces Moved 2797 | 95 374 749 36 539 137 687 180 Core 3 | 3 . . . . . . . Treads . | . . . . . . . . Legs 292 | . 15 61 . . . 83 133 Wheels 2455 | 92 359 688 36 539 137 604 . Hover . | . . . . . . . . Flight 47 | . . . . . . . 47 Fastest Speed 29 | 50 90 90 105 105 105 100 29 Average Speed 108 | 88 126 97 105 105 105 106 148 Slowest Speed 270 | 100 135 120 105 105 105 200 270 Overloaded Moves . | . . . . . . . . Propulsion Burnouts . | . . . . . . . . Robots Hopped . | . . . . . . . . Potential Cave-ins . | . . . . . . . . Cave-ins Triggered . | . . . . . . . . Exploration Rate (%) 30 | 4 40 49 7 72 31 35 4 Regions Visited 7 Branch Regions 3 Pre-discovered Areas 1 | . . . . 1 . . . Known Exits Taken . | . . . . . . . . Unknown Exits Taken 7 | 1 1 1 1 1 1 1 . Scrap Searched 1 | . . . . . 1 . . Spaces Dug . | . . . . . . . . Terrain Destroyed 41 | . . 41 . . . . . Melee . | . . . . . . . . Projectile . | . . . . . . . . AOE 41 | . . 41 . . . . . Terrain Rammed . | . . . . . . . . Walls Destroyed . | . . . . . . . . Machines Disabled . | . . . . . . . . Actions | -11 -10 -9 -9 -9 -8 -8 -7 --------- Run | Yrd Mat Mat Min Exi Min Mat Fac Total 3192 | 117 496 850 37 547 144 789 212 Wait 40 | . 15 . . . . 25 . Move 2790 | 94 373 748 35 538 136 686 180 Hop . | . . . . . . . . Pick Up 74 | 11 13 19 1 5 1 16 8 Fast Attach 15 | 3 2 4 . . . 3 3 Attach 31 | 3 7 6 . . . 8 7 Detach 2 | . 1 1 . . . . . Swap 29 | . 11 6 1 . 2 8 1 Drop 43 | 1 6 18 . 4 2 12 . Fire 138 | 5 49 46 . . 3 22 13 Melee 19 | . 19 . . . . . . Ram 2 | . . 2 . . . . . Kick 2 | . . . . . . 2 . Crush . | . . . . . . . . Escape Stasis . | . . . . . . . . Rewire 7 | . . . . . . 7 . Trap . | . . . . . . . . Miscellaneous . | . . . . . . . . Route ------- -11/Scrapyard -10/Materials (discovered 2 exits: *Mat / [*Min]) -9/Materials (discovered 2 exits: Mat / [*Min]) -9/Mines -9/Exiles (discovered 2 exits: [*Min x2]) -8/Mines -8/Materials -7/Factory History --------- Turn | Location | Event 23 | -11/Scrapyard | Discovered new exit (range 15) 119 | -11/Scrapyard | Entered Materials 301 | -10/Materials | Discovered new exit (range 7) 318 | -10/Materials | Build established: Mutant 683 | -10/Materials | Discovered new exit (range 12) 714 | -10/Materials | Lost 3 parts (1n1u1w) 764 | -10/Materials | Core integrity fell below 50% 815 | -10/Materials | Core integrity fell below 20% 836 | -10/Materials | Entered another Materials area 836 | -9/Materials | Evolved 2 slots: Propulsion x1, Utility x1 1087 | -9/Materials | Discovered new exit (range 6) 1330 | -9/Materials | Build established: Scavenger-Mutant 1595 | -9/Materials | Lost 3 parts (3n) 1747 | -9/Materials | Discovered new exit (range 7) 1756 | -9/Materials | Entered Mines 1760 | -9/Mines | Learned 2 Materials zone layouts 1768 | -9/Mines | Received a Mining Laser from a helpful Derelict 1790 | -9/Mines | Deemed a non-threat by the Exiles lab entrance 1792 | -9/Mines | Discovered new exit (range 5) 1796 | -9/Mines | Entered Exiles 1796 | -9/Exiles | Accompanied by 1 ally 1812 | -9/Exiles | Discovered new exit (range 14) 1829 | -9/Exiles | Met 8R-AWN 1848 | -9/Exiles | Met EX-HEX 1907 | -9/Exiles | Met EX-DEC 1929 | -9/Exiles | Build established: Mutant 1932 | -9/Exiles | Learned location of Zion (-6) 2014 | -9/Exiles | Discovered new exit (range 10) 2101 | -9/Exiles | Met EX-BIN 2224 | -9/Exiles | Aligned with FarCom system 2225 | -9/Exiles | Given EX-Vault access code 2255 | -9/Exiles | Opened EX-Vault 2262 | -9/Exiles | Found Modified TNC 2266 | -9/Exiles | Found Longsword +1 2268 | -9/Exiles | Found 0b10 Alert Chip 2291 | -9/Exiles | Warned to stay clear of 0b10 Research branches 2302 | -9/Exiles | Exiles lab attacked by MAIN.C 2368 | -9/Exiles | Left Exiles lab with Modified TNC 2368 | -9/Exiles | Entered Mines 2506 | -8/Mines | Discovered new exit (range 6) 2529 | -8/Mines | Entered Materials 2529 | -8/Materials | Evolved 2 slots: Utility x2 2928 | -8/Materials | Discovered new exit (range 8) 3095 | -8/Materials | Repaired Flak Cannon? 3312 | -8/Materials | Core integrity fell below 50% 3320 | -8/Materials | Lost 7 parts (1p4n1u1w) 3367 | -8/Materials | Lost 3 parts (1p1u1w) 3409 | -8/Materials | Entered Factory 3409 | -7/Factory | Evolved 2 slots: Power x1, Utility x1 3676 | -7/Factory | Lost 3 parts (1p1n1u) 3704 | -7/Factory | Build established: Scavenger-Mutant 3737 | -7/Factory | Self-destructed Last Messages --------------- 03710_ Penetrated by Slug. 03710_ Slug penetrates Subcomponent Replicator. 03712_ Penetrated by Slug. 03712_ Gauss Rifle destroyed. 03713_ VSS Leg destroyed. 03713_ Lgt. Nuclear Core destroyed. 03713_ Penetrated by Slug. 03715_ Field Laser destroyed. 03718_ Penetrated by Slug. 03718_ Slug penetrates Wall. 03719_ Critical hit (Destroy). 03719_ Arc Projector destroyed. 03719_ Med. Storage Unit destroyed. 03719_ Slug penetrates Wall. 03721_ R-06 Scavenger collects System Shield. 03721_ Slug penetrates Wall. 03722_ VTOL Module destroyed. 03724_ Slug penetrates Wall. 03728_ Acquired Armor Integrity Analyzer. 03736_ VTOL Module destroyed. Map ----- +----------------------------------------------------+ | ??????????????# #???????????? | | ??????????????# ##############? | | ??????????????# # #? | | ??????????????# # #? | | ??????????????# + """ """ #? | | ??????????????# # """ """ #? | | ??????????????# # """ """ #? | | ??????????????# # #? | | ???################### # """ """ #? | | ???# # # """ """ #? | | ???# # # """ """ #? | | ???# # # #? | | ???# # # #? | | ???# # # #? | | ???# # ##############? | | ???# # #?????????????? | | ???###############+### #?????????????? | | ???????# #?????????????? | | ######## #?????????????? | | # # #?????????????? | | # ""!!# #?????????????? | | # %G !# #?????????????? | | # ""![# ####################????????? | | # # # [ #????????? | | # # # #????????? | | # + Y hh @ #????????? | | #] # #hh""" """ | ! #????????? | | # "" # # """ """ !| #????????? | | #! "" # #| """ """ ! #????????? | | # """ # # #????????? | | # """ # # #????????? | | # """ # ####################????????? | | # # #???????????????????????????? | | ######## #???????????????????????????? | | ???????# #???????????????????????????? | | ???????# #???????????????????????????? | | ???????# #???????????????????????????? | | ???????# #???????????????????????????? | | ???????# #???????????????????????????? | | ???????# +???????????????????????????? | | ???????+ #???????????????????????????? | | ???????? ????????????????????????????? | | ?????????????????????????????????????????? | | ?????????????????????????????????????????? | | ?????????????????????????????????????????? | | ?????????????????????????????????????????? | | ?????????????????????????????????????????? | | ?????????????????????????????????????????? | | ?????????????????????????????????????????? | | ?????????????????????????????????????????? | +----------------------------------------------------+ Best States ------------- Heat Dissipation 45 Energy Generation 23 Energy Capacity 265 Matter Stores 300 Matter Capacity 300 Sight Range 16 Robot Scan Range 14 Terrain Scan Density 10 Armor Coverage 150 Evasion (%) 55 Targeting Accuracy 6 Particle Charging 22 Offensive Hacking 10 Item Schematics ----------------- Adv. Beam Cannon | -8/Materials | Scanalyzed Robot Schematics ------------------ None Fabricated ------------ Nothing Repaired ---------- Flak Cannon | 26% | -8/Materials Studied --------- None Alien Tech Used ----------------- None Achievements -------------- Bumper Bots Close Call DATA ERROR: Steam Global Achievement% For Emergencies Only Heavy Suspicion Organ Harvest Overwhelming Sixth Sense There's More Where That Came From Challenges ------------ None Game ------ Seed DroneArchitectDirector Manual? 0 Play Time 01:55:59 Cumulative 23.4 hours Start 2026.09.22 @ 19:39:36 End 2026.09.24 @ 20:48:31 Sessions 5 Manual Loads 0 Difficulty Rogue Special Mode None Game No. 23 Rogue 23 Adventurer 0 Explorer 0 Win Type - Total 0 Types 0/0/0/0/0/0/0/0/0/0 Lore% 11 Gallery% 18 Achievement% 12 Wizard Run 0 Options --------- Layout 1 ASCII 0 Keyboard 1 Movement Vi Keybinds 0 Fullscreen 1 Font 24/Proggy Map View 50x35 Zoom Use 0% Tactical HUD 1 Map Filters NONE Filters NONE Steam 1 RUN: 87b524c3-486c-4058-8dce-cd3197c25095